bitfinex/quotes_ETHUSD_20260214
["timestamp","ask_amount","ask_price","bid_price","bid_amount"]
[1771063119673,0.49849435,2080.6,2080.0,1.69144515]
[1771063121066,1.19511999,2080.7,2080.0,1.69144515]
[1771063121246,1.68219645,2080.7,2080.0,1.69144515]
[1771063121448,1.19511999,2080.7,2080.1,0.49134137]
[1771063121660,0.48817646,2080.8,2080.2,1.20180751]
[1771063122664,0.48817646,2080.8,2080.1,1.20182258]
[1771063124777,1.68859517,2080.7,2080.1,1.20182258]
[1771063131575,0.48707646,2080.6,2080.1,1.20182258]
[1771063131876,4.8070997,2080.8,2080.1,1.20182258]
[1771063131877,0.0011,2080.8,2080.2,0.49134137]
[1771063132081,1.68964208,2080.8,2080.2,0.49134137]
[1771063132869,1.68964208,2080.8,2080.2,1.20175554]
[1771063133484,0.48707646,2080.7,2080.2,1.20175554]
[1771063136285,1.68861258,2080.7,2080.1,4.80734021]
[1771063138308,1.68861258,2080.7,2080.1,1.20186529]
[1771063138512,0.48707646,2080.6,2080.0,5.02188012]
[1771063139111,0.48707646,2080.6,2080.0,5.51322149]
[1771063139411,1.20153612,2080.7,2080.1,0.49134137]
[1771063140218,1.68861258,2080.7,2080.1,0.49134137]
[1771063142196,0.47497319,2080.6,2080.0,5.02188012]
[1771063142595,0.47497319,2080.6,2080.0,5.50973575]
[1771063145014,0.47497319,2080.5,2080.0,5.0219202]
[1771063148020,1.67662026,2080.5,2080.0,1.2019202]
[1771063156919,0.47497319,2080.5,2080.0,1.2019202]
[1771063157123,1.67649316,2080.7,2079.9,5.29577224]
[1771063157294,1.67649316,2080.7,2080.0,0.48785563]
[1771063157498,0.47497319,2080.6,2080.0,0.48785563]
[1771063158430,1.20151997,2080.7,2080.0,0.48785563]
[1771063159127,0.47607319,2080.8,2080.2,0.48785563]
[1771063159300,1.20257927,2080.8,2080.2,0.48785563]
[1771063159814,1.67755246,2080.8,2080.2,0.48785563]
[1771063162203,0.47497319,2080.7,2080.1,3.66886529]
[1771063162800,0.47497319,2080.7,2080.1,4.15672092]
[1771063171031,1.67649439,2080.7,2080.1,4.15672092]
[1771063172038,0.0011,2080.8,2080.1,4.15672092]
[1771063172240,1.66606456,2080.8,2080.2,0.49329281]
[1771063172530,0.46350216,2080.8,2080.2,0.49329281]
[1771063172737,1.66496456,2080.8,2080.2,0.49329281]
[1771063174534,1.66496456,2080.8,2080.3,1.20174974]
[1771063174840,0.46350216,2080.7,2080.2,1.20176906]
[1771063176644,1.2014624,2080.8,2080.2,1.69506187]
[1771063177138,1.66496456,2080.8,2080.2,1.69506187]
[1771063179652,0.46350216,2080.7,2080.1,3.66883013]
[1771063181366,1.20157646,2080.6,2080.1,3.66883013]
[1771063181529,1.66505479,2080.7,2080.1,3.66883013]
[1771063184245,0.49586292,2080.6,2080.1,2.467]
[1771063186560,1.20163422,2080.5,2080.1,2.467]
[1771063186866,0.49586292,2080.4,2080.0,3.82]
[1771063189044,0.49586292,2080.4,2079.9,1.20293729]
[1771063191241,0.49586292,2080.8,2079.9,1.69179348]
[1771063191941,0.49586292,2079.9,2079.1,0.001]
[1771063192149,0.49586292,2079.2,2078.6,0.001]
[1771063192548,0.74686292,2079.2,2078.7,8.09223923]
[1771063192746,0.74686292,2079.2,2078.6,2.468]
[1771063193050,3.36495984,2079.1,2078.6,2.468]
[1771063193250,1.20255904,2078.9,2078.6,2.468]
[1771063194980,1.69842196,2078.9,2078.6,2.468]
[1771063195651,0.0023,2078.8,2078.6,2.468]
[1771063195863,0.00115,2078.8,2078.6,2.468]
[1771063196372,0.00115,2078.8,2078.6,2.467]
[1771063196796,1.2025081,2079.0,2078.6,2.467]
[1771063197848,1.2025081,2079.0,2078.6,2.4678]
[1771063200452,1.69964089,2079.1,2078.6,2.4678]
[1771063200884,1.20377797,2079.1,2078.6,2.4678]
[1771063201056,0.49586292,2079.0,2078.6,2.4678]
[1771063203054,1.66917923,2078.9,2078.6,2.4678]
[1771063204485,0.46662019,2078.8,2078.6,0.0008]
[1771063205251,0.46662019,2078.6,2078.3,0.0018]
[1771063207178,1.66940516,2078.6,2078.3,0.0018]
[1771063207782,1.66940516,2078.6,2078.3,0.001]
[1771063208082,1.66940516,2078.6,2078.2,3.25693]
[1771063208386,0.46662019,2078.5,2078.2,3.0118326]
[1771063209490,0.46662019,2078.3,2078.2,3.0118326]
[1771063210257,0.46662019,2078.3,2078.2,0.5448326]
[1771063211157,0.46662019,2078.3,2078.1,0.001]
[1771063213389,1.20284834,2078.4,2078.1,0.001]
[1771063214091,1.66946853,2078.4,2078.1,0.001]
[1771063214298,0.46662019,2078.4,2078.1,0.001]
[1771063215297,1.20283675,2078.5,2078.1,0.001]
[1771063215592,0.46662019,2078.5,2078.1,0.001]
[1771063216100,0.46662019,2078.5,2077.8,3.44735886]
[1771063216310,0.46662019,2078.5,2077.8,2.468]
[1771063216604,0.46662019,2078.3,2077.8,2.468]
[1771063217291,0.46662019,2078.3,2077.8,3.67119322]
[1771063217500,1.66955469,2078.3,2077.8,3.67119322]
[1771063218003,1.66955469,2078.3,2077.8,2.468]
[1771063218804,1.66955469,2078.3,2077.8,3.67119329]
[1771063219797,0.46662019,2078.2,2077.8,3.67119329]
[1771063219986,0.46662019,2078.2,2077.8,2.468]
[1771063220301,0.46662019,2078.2,2077.8,3.67119148]
[1771063220468,0.46662019,2078.2,2077.8,2.468]
[1771063220670,0.46662019,2078.0,2077.8,0.001]
[1771063221314,8.09223923,2078.2,2077.6,0.001]
[1771063221315,0.46662019,2077.8,2077.6,0.001]
[1771063221469,2.86221193,2077.7,2077.6,0.001]
[1771063222188,0.46662019,2077.8,2077.6,0.001]
[1771063224906,0.46662019,2077.7,2077.6,0.001]
[1771063225092,0.46662019,2077.7,2077.5,0.866]
[1771063225696,0.46662019,2077.7,2077.3,0.0008]
[1771063226580,1.66991238,2077.7,2077.3,0.0008]
[1771063226780,0.46662019,2077.7,2077.3,0.0008]
[1771063227692,0.46662019,2077.6,2077.3,0.0008]
[1771063228724,0.46662019,2077.6,2077.3,0.0018]
[1771063229523,0.46662019,2077.5,2077.3,0.0018]
[1771063231607,1.20339158,2077.5,2077.3,0.0018]
[1771063231809,0.46526723,2077.4,2077.3,0.0018]
[1771063232119,0.46226723,2077.4,2077.3,0.0018]
[1771063232501,0.46226723,2077.4,2077.3,0.001]
[1771063233107,1.66569459,2077.4,2077.3,0.001]
[1771063233426,0.46526723,2077.3,2077.1,0.0018]
[1771063233726,0.46526723,2077.3,2077.1,0.001]
[1771063235014,1.66881046,2077.2,2077.1,0.001]
[1771063235624,0.46526723,2077.1,2076.9,0.0008]
[1771063235813,1.66881046,2077.2,2076.9,0.0008]
[1771063236014,0.46526723,2077.1,2076.8,0.8668]
[1771063236919,0.46526723,2077.1,2076.8,0.0008]
[1771063237716,0.46526723,2077.0,2076.8,0.0008]
[1771063239012,0.46526723,2076.9,2076.8,0.0008]
[1771063240743,0.46526723,2076.9,2076.7,0.001]
[1771063241243,1.68672896,2076.8,2076.7,0.001]
[1771063241406,0.48295393,2076.7,2076.5,0.0018]
[1771063241718,0.48295393,2076.7,2076.2,0.8668]
[1771063241903,0.48295393,2076.6,2076.2,0.0008]
[1771063242319,0.48295393,2076.5,2076.2,0.0008]
[1771063242521,0.48295393,2076.5,2076.0,0.0008]
[1771063242921,0.48295393,2076.4,2076.0,0.0008]
[1771063243320,0.48295393,2076.3,2076.0,0.0008]
[1771063245012,1.18823777,2076.6,2076.0,0.18590842]
[1771063245013,2.87509527,2076.6,2076.0,0.18590842]
[1771063245217,0.48295393,2076.5,2076.0,0.0008]
[1771063248351,0.48295393,2076.4,2075.9,0.001]
[1771063248644,0.48295393,2076.4,2075.9,1.20529327]
[1771063250121,0.48295393,2076.3,2075.9,0.001]
[1771063252051,4.81602774,2076.5,2075.9,0.001]
[1771063252052,1.68690474,2076.5,2075.9,0.001]
[1771063252243,0.48295393,2076.4,2075.9,0.001]
[1771063254469,0.48295393,2076.3,2075.9,0.001]
[1771063254669,1.20404137,2076.4,2074.9,0.34154217]
[1771063254670,0.48295393,2076.0,2074.9,0.34154217]
[1771063254866,0.48295393,2076.2,2075.6,0.001]
[1771063255030,0.48295393,2076.1,2075.6,0.001]
[1771063256698,0.48295393,2075.9,2075.6,0.001]
[1771063256985,8.12323465,2076.4,2075.6,0.001]
[1771063256986,0.48295393,2076.1,2075.6,0.001]
[1771063257332,1.68690928,2076.5,2075.6,0.18710842]
[1771063258363,0.48295393,2076.4,2075.6,0.18710842]
[1771063258544,1.20404229,2076.4,2075.7,1.20441296]
[1771063258854,0.48295393,2076.3,2075.7,1.20441296]
[1771063259468,1.68692701,2076.5,2075.7,1.20441296]
[1771063260770,0.48295393,2076.4,2075.7,1.20441296]
[1771063262066,0.48295393,2076.4,2075.6,1.20543238]
[1771063262776,1.20406492,2076.3,2075.6,0.001]
[1771063262975,0.46977071,2076.3,2075.6,0.001]
[1771063263269,0.46977071,2076.4,2075.6,0.18710842]
[1771063264144,0.46977071,2076.4,2075.6,0.001]
[1771063264341,0.46977071,2076.3,2075.6,0.001]
[1771063264861,0.46977071,2076.3,2074.9,1.54639552]
[1771063264862,0.46977071,2075.5,2075.0,1.20581555]
[1771063265545,0.46977071,2075.5,2075.0,0.001]
[1771063266045,0.46977071,2075.5,2074.9,1.04739478]
[1771063266977,0.46977071,2075.4,2074.8,4.81970152]
[1771063267174,0.46977071,2075.6,2074.8,4.81970152]
[1771063267548,0.46977071,2075.6,2074.8,5.00580994]
[1771063268763,0.46977071,2075.6,2074.8,4.81970152]
[1771063269072,0.46977071,2075.5,2074.8,4.81970152]
[1771063270272,0.46977071,2075.5,2074.8,5.00580994]
[1771063271669,0.46977071,2075.4,2074.8,1.20493541]
[1771063273073,0.46977071,2075.4,2074.7,0.499]
[1771063273446,0.46977071,2075.2,2074.7,0.499]
[1771063273851,0.46977071,2075.4,2074.7,1.70398866]
[1771063274168,0.46977071,2075.3,2074.7,1.70398866]
[1771063277380,0.46977071,2075.2,2074.7,0.499]
[1771063277582,0.46977071,2075.2,2074.7,0.001]
[1771063278078,0.46977071,2075.1,2074.7,0.001]
[1771063278281,0.46977071,2075.1,2074.6,1.34760434]
[1771063278282,0.46977071,2075.1,2074.6,0.1425799]
[1771063279156,0.46977071,2075.1,2074.2,2.05847981]
[1771063279347,0.46977071,2075.1,2074.3,0.002]
[1771063279545,0.46977071,2075.1,2074.4,0.001]
[1771063279980,0.46977071,2074.9,2074.4,0.001]
[1771063280689,0.46977071,2074.9,2074.5,0.002]
[1771063281060,0.46977071,2074.9,2074.6,0.002]
[1771063281255,0.46977071,2074.9,2074.5,0.002]
[1771063281508,0.46977071,2074.9,2074.4,0.001]
[1771063282582,0.46977071,2074.7,2074.4,0.001]
[1771063283656,0.46977071,2074.7,2074.4,0.003]
[1771063283857,0.46977071,2074.9,2074.5,0.002]
[1771063284058,1.67465357,2074.9,2074.5,0.002]
[1771063284689,0.46977071,2074.8,2074.5,0.002]
[1771063285396,1.67472139,2074.8,2074.4,0.001]
[1771063285597,0.46977071,2074.7,2074.5,0.002]
[1771063286395,1.67468214,2074.9,2074.6,0.002]
[1771063286596,1.67468214,2074.9,2074.5,0.002]
[1771063286902,0.46977071,2074.8,2074.4,0.003]
[1771063288319,0.46977071,2074.6,2074.4,0.003]
[1771063290104,0.46977071,2074.6,2074.3,0.002]
[1771063290400,0.46977071,2074.4,2074.2,0.80720028]
[1771063290804,1.67485994,2074.6,2074.2,0.80720028]
[1771063291003,0.45592998,2074.5,2074.2,0.80720028]
[1771063291673,0.45592998,2075.0,2074.2,2.33883667]
[1771063292205,0.45592998,2075.0,2074.3,0.32638832]
[1771063292582,0.45592998,2075.0,2074.4,1.20516775]
[1771063294211,1.66075572,2075.0,2074.4,1.20516775]
[1771063294505,0.45592998,2074.7,2074.2,0.80720028]
[1771063294709,0.45592998,2074.7,2074.2,2.01248372]
[1771063295003,1.20492038,2074.9,2074.2,2.01248372]
[1771063295176,1.66085036,2074.9,2074.2,2.01248372]
[1771063296308,0.45592998,2074.8,2074.2,2.01248372]
[1771063296529,4.81969305,2075.3,2074.2,2.01248372]
[1771063296530,0.0011,2075.3,2074.2,2.01248372]
[1771063296715,0.0011,2075.3,2074.2,2.33887204]
[1771063296716,0.45592998,2075.0,2074.2,2.33887204]
[1771063297912,0.45592998,2075.0,2074.2,2.01248372]
[1771063298983,0.45592998,2074.8,2074.2,2.01248372]
[1771063299383,0.45592998,2074.8,2074.2,0.80720028]
[1771063301721,0.4598946,2074.6,2074.2,0.80720028]
[1771063303713,1.66500426,2074.5,2074.2,0.80720028]
[1771063305005,0.4598946,2074.4,2074.2,0.80720028]
[1771063305929,1.66506249,2074.4,2074.2,0.80720028]
[1771063306100,1.66506835,2074.4,2074.2,0.80720028]
[1771063306300,0.4598946,2074.3,2073.9,0.001]
[1771063306520,1.66504173,2074.5,2073.9,0.001]
[1771063307029,0.4598946,2074.4,2073.9,0.001]
[1771063307213,1.20501785,2074.7,2074.0,0.45205152]
[1771063307411,1.66491245,2074.7,2074.0,0.45205152]
[1771063308115,1.66491245,2074.7,2074.1,1.20534207]
[1771063308503,0.4598946,2074.6,2074.0,1.20535947]
[1771063309009,1.20501785,2074.7,2074.0,1.20535947]
[1771063309611,1.20497666,2074.8,2074.0,1.65741099]
[1771063310231,1.66487126,2074.8,2074.0,1.65741099]
[1771063310730,0.4598946,2074.8,2074.0,1.65741099]
[1771063310936,1.66483194,2074.8,2074.0,1.65741099]
[1771063311812,1.66483194,2074.8,2074.1,0.45205152]
[1771063312831,1.66483194,2074.8,2074.2,1.20528396]
[1771063313505,0.4598946,2074.7,2073.9,0.45305152]
[1771063313707,0.4598946,2074.7,2073.9,1.20643223]
[1771063314006,0.4598946,2074.7,2073.9,1.65848375]
[1771063314406,0.4598946,2074.7,2073.9,1.20643223]
[1771063314649,0.4598946,2074.7,2074.0,0.45205152]
[1771063314942,0.4598946,2074.9,2074.1,1.65739359]
[1771063315936,0.4598946,2075.0,2074.2,0.45205152]
[1771063316615,1.2,2074.8,2074.2,0.45205152]
[1771063316831,0.4598946,2074.7,2074.0,1.65739359]
[1771063317008,2.40499125,2074.8,2074.1,0.45205152]
[1771063317410,1.20499125,2074.8,2074.1,0.45205152]
[1771063317805,0.4598946,2074.7,2074.1,0.45205152]
[1771063318017,0.4598946,2074.7,2074.0,1.20534207]
[1771063318544,0.4598946,2074.7,2073.9,1.65850631]
[1771063318711,0.4598946,2074.9,2074.0,0.45205152]
[1771063318909,1.20489929,2074.9,2074.2,0.45205152]
[1771063319312,0.4598946,2074.9,2074.2,0.45205152]
[1771063320817,5.28007949,2075.1,2074.3,1.65727737]
[1771063321130,5.28007949,2075.1,2074.2,4.82090343]
[1771063321131,0.4598946,2074.9,2074.1,1.65734649]
[1771063321325,0.4598946,2074.9,2074.2,0.46509701]
[1771063321638,0.0011,2075.1,2074.4,0.46509701]
[1771063323438,0.0011,2075.1,2074.6,0.46509701]
[1771063325222,0.0011,2075.1,2074.6,1.67011572]
[1771063325939,0.0011,2075.1,2074.7,0.46509701]
[1771063327343,0.0011,2075.1,2074.8,1.20493541]
[1771063327547,0.0011,2075.1,2074.8,1.67003242]
[1771063327851,0.0011,2075.1,2074.9,0.46509701]
[1771063329734,0.0011,2075.1,2074.9,1.66996268]
[1771063330250,0.0011,2075.1,2074.9,0.46509701]
[1771063330454,0.0011,2075.1,2074.9,1.66997407]
[1771063330621,1.10892902,2075.5,2074.9,1.66997407]
[1771063330824,1.56958714,2075.5,2074.9,1.66997407]
[1771063331832,1.56958714,2075.5,2073.7,0.97169518]
[1771063331833,0.46065812,2075.0,2074.0,1.20540019]
[1771063332037,0.46065812,2075.0,2074.1,0.36129131]
[1771063332538,0.46065812,2074.8,2073.9,1.2064155]
[1771063333763,0.46065812,2074.6,2073.9,1.2064155]
[1771063335094,4.81997397,2074.9,2073.9,1.2064155]
[1771063335095,1.66557405,2074.9,2074.0,0.36129131]
[1771063335754,0.46065812,2074.8,2074.0,0.36129131]
[1771063335955,1.66560671,2074.8,2074.1,1.20534207]
[1771063336361,0.46065812,2074.7,2074.1,1.20534207]
[1771063336599,0.46065812,2074.7,2074.0,1.20535674]
[1771063336947,1.20494859,2074.8,2074.1,0.36129131]
[1771063337153,1.2049107,2074.9,2074.1,0.36129131]
[1771063337349,1.66556882,2074.9,2074.1,0.36129131]
[1771063338181,1.66556882,2074.9,2074.2,1.20528396]
[1771063338359,1.66556882,2074.9,2074.3,2.469]
[1771063338974,1.56556882,2074.9,2074.3,2.469]
[1771063340855,1.56556882,2074.9,2074.3,3.67421238]
[1771063341366,0.0011,2075.4,2074.3,3.67421238]
[1771063341367,1.66639048,2075.4,2074.5,0.36129131]
[1771063341671,1.66637703,2075.4,2074.5,0.36129131]
[1771063342190,0.46175812,2075.4,2074.5,0.36129131]
[1771063343093,0.0011,2075.4,2074.7,0.36129131]
[1771063345091,0.46175812,2075.4,2074.8,1.20493541]
[1771063345508,0.0011,2075.4,2074.8,1.56622672]
[1771063346159,0.0011,2075.4,2074.9,2.469]
[1771063347191,0.0011,2075.4,2075.0,1.20481927]
[1771063349379,0.46175812,2075.4,2074.9,2.469]
[1771063349599,0.46175812,2075.4,2074.9,3.67387433]
[1771063350268,0.0011,2075.4,2074.9,3.67387433]
[1771063350484,0.0011,2075.6,2075.1,26.592633]
[1771063350684,0.0011,2075.6,2074.9,3.67387433]
[1771063350685,0.46065812,2075.5,2074.9,3.67387433]
[1771063351269,0.46008966,2075.4,2074.9,3.67387433]
[1771063352779,1.66569949,2075.6,2074.9,3.67387433]
[1771063353384,1.66569949,2075.6,2074.9,4.03516564]
[1771063353876,0.46008966,2075.5,2074.9,3.67387433]
[1771063355281,1.20457883,2075.5,2074.9,3.67386637]
[1771063355579,1.66466849,2075.5,2074.9,3.67386637]
[1771063356092,0.46008966,2075.5,2074.9,3.67386637]
[1771063357171,0.0011,2075.6,2074.9,4.03515768]
[1771063357802,0.46118966,2075.6,2074.9,3.67386637]
[1771063358098,0.46118966,2075.6,2074.9,2.469]
[1771063359706,0.46396069,2075.4,2074.9,2.469]
[1771063362706,0.46396069,2075.2,2074.9,2.469]
[1771063364087,0.46396069,2075.2,2074.7,0.867]
[1771063364508,0.46396069,2075.0,2074.7,0.867]
[1771063365099,1.20476121,2075.1,2074.7,0.867]
[1771063365714,0.46396069,2075.2,2074.7,0.867]
[1771063365715,1.66870831,2075.2,2074.7,0.867]
[1771063365907,1.66860124,2075.4,2074.7,2.07198466]
[1771063366630,4.81766361,2075.7,2074.7,2.07198466]
[1771063366631,0.46396069,2075.3,2074.7,2.07198466]
[1771063367192,0.46396069,2075.3,2074.7,0.867]
[1771063367905,0.46396069,2075.3,2074.7,2.07199059]
[1771063369606,1.66860973,2075.3,2074.7,2.07199059]
[1771063370024,0.46396069,2075.3,2074.7,2.07199059]
[1771063371715,1.20454071,2075.5,2074.7,2.07199059]
[1771063372023,1.6685014,2075.5,2074.7,2.4332819]
[1771063372623,0.46396069,2075.4,2074.7,2.4332819]
[1771063372994,0.46396069,2075.4,2074.7,2.07199059]
[1771063373420,0.46396069,2075.4,2074.7,1.20499059]
[1771063374027,0.46396069,2075.2,2074.7,1.20499059]
[1771063374419,0.46396069,2075.2,2074.6,3.6750085]
[1771063376521,1.66867051,2075.2,2074.6,3.6750085]
[1771063376727,0.46396069,2075.5,2074.7,0.36129131]
[1771063377601,1.20558071,2075.6,2074.7,0.36129131]
[1771063378111,1.6695414,2075.6,2074.7,0.36129131]
[1771063378526,1.6695414,2075.6,2074.8,1.56622672]
[1771063379919,0.46396069,2075.5,2074.8,1.20493541]
[1771063380429,0.46396069,2075.5,2074.6,3.67502212]
[1771063380925,1.20458706,2075.4,2074.6,3.67502212]
[1771063381140,0.46396069,2075.3,2074.6,3.67502212]
[1771063382444,0.46396069,2075.3,2074.6,2.47]
[1771063382604,0.46396069,2075.3,2074.6,3.67503589]
[1771063382798,0.46396069,2075.3,2074.6,4.0363272]
[1771063383416,1.69766575,2075.5,2074.7,0.36129131]
[1771063384099,0.49309607,2075.5,2074.7,0.36129131]
[1771063385326,1.69762663,2075.5,2074.8,1.20493541]
[1771063385530,0.49309607,2075.4,2074.7,1.20495118]
[1771063387746,1.69774118,2075.3,2074.7,1.20495118]
[1771063389855,0.49309607,2075.3,2074.7,1.20495118]
[1771063390346,1.69778566,2075.3,2074.7,1.20495118]
[1771063390521,0.49309607,2075.2,2074.7,1.20495118]
[1771063393541,4.81823188,2075.5,2074.7,1.20495118]
[1771063393743,0.49309607,2075.3,2074.7,1.20495118]
[1771063396423,1.69765596,2075.5,2074.7,1.56624249]
[1771063396622,1.20455989,2075.5,2074.7,1.56624249]
[1771063396851,0.49309607,2075.4,2074.7,1.56624249]
[1771063397727,1.6976895,2075.4,2074.7,1.56624249]
[1771063398224,0.49309607,2075.4,2074.7,1.56624249]
[1771063398424,1.69768673,2075.4,2074.7,1.56624249]
[1771063398650,0.49309607,2075.4,2074.8,0.36129131]
[1771063398841,1.69769438,2075.4,2074.8,0.36129131]
[1771063399650,0.49309607,2075.4,2074.8,0.36129131]
[1771063399955,1.69769118,2075.4,2074.9,1.20487734]
[1771063400259,1.204564,2075.5,2074.9,1.20487734]
[1771063400454,1.204564,2075.5,2074.9,1.56616865]
[1771063400632,1.69766007,2075.5,2074.9,1.20487734]
[1771063400961,1.204564,2075.5,2074.9,1.20487734]
[1771063401163,0.49309607,2075.4,2074.9,1.20487734]
[1771063401733,1.204564,2075.5,2074.9,1.20487734]
[1771063402362,1.204564,2075.5,2074.9,0.36129131]
[1771063404259,1.69870946,2075.6,2074.9,0.36129131]
[1771063404461,0.0011,2075.6,2075.1,1.20476121]
[1771063404662,0.0011,2075.6,2075.1,3.67476121]
[1771063405661,0.0011,2075.6,2075.1,4.03605252]
[1771063405845,0.0011,2075.6,2075.2,26.95392431]
[1771063406041,0.0011,2075.6,2075.2,0.36129131]
[1771063407967,0.0011,2075.6,2075.3,1.20464511]
[1771063408664,0.0011,2075.6,2075.3,1.56593642]
[1771063409682,0.0011,2075.8,2075.4,26.95392431]
[1771063409883,0.0011,2075.8,2075.5,2.83129131]
[1771063410054,0.0011,2075.8,2075.6,1.20447099]
[1771063411847,0.0011,2075.9,2075.6,1.20447099]
[1771063415483,0.46885238,2075.8,2075.0,1.20481927]
[1771063415790,0.46885238,2075.8,2075.0,2.47]
[1771063416572,0.46885238,2075.6,2075.0,2.47]
[1771063417987,0.46885238,2075.6,2074.7,0.867]
[1771063419212,0.46885238,2075.4,2074.7,0.867]
[1771063419374,0.46885238,2075.4,2074.7,2.07198485]
[1771063420085,0.46885238,2075.4,2074.7,0.867]
[1771063420671,0.46885238,2075.4,2074.7,2.07199222]
[1771063421160,1.2046101,2075.4,2074.7,2.07199222]
[1771063421370,0.46057063,2075.3,2074.7,2.07199222]
[1771063421777,0.46057063,2075.3,2074.7,0.867]
[1771063422169,0.46057063,2075.3,2074.7,2.07199232]
[1771063424198,1.66521825,2075.3,2074.7,2.07199232]
[1771063424392,0.46057063,2075.3,2074.7,2.07199232]
[1771063424769,0.46057063,2075.4,2074.8,8.406]
[1771063425281,0.46057063,2075.4,2074.7,2.07199232]
[1771063426189,0.46057063,2075.4,2074.7,2.43328363]
[1771063426790,1.66517262,2075.4,2074.7,2.43328363]
[1771063426963,0.46057063,2075.4,2074.7,2.43328363]
[1771063427989,1.66516757,2075.4,2074.7,2.43328363]
[1771063428696,0.46057063,2075.4,2074.7,2.43328363]
[1771063429956,0.46057063,2075.4,2074.8,26.592633]
[1771063430188,1.6651646,2075.4,2074.8,0.36129131]
[1771063430388,0.46057063,2075.4,2074.9,1.20487734]
[1771063434298,1.66515988,2075.4,2074.9,1.20487734]
[1771063434697,0.46057063,2075.4,2074.9,1.20487734]
[1771063436477,0.46057063,2075.3,2074.9,1.20487734]
[1771063437591,0.46057063,2075.3,2074.8,4.81969719]
[1771063441083,0.46779954,2075.5,2074.8,5.1809885]
[1771063441681,0.46779954,2075.5,2074.9,26.95392431]
[1771063441992,0.46889954,2075.7,2075.1,1.20476121]
[1771063442192,0.0011,2075.7,2075.1,9.70006386]
[1771063442392,0.0011,2075.7,2075.3,26.592633]
[1771063442694,0.0011,2075.7,2075.4,2.47]
[1771063444100,0.0011,2075.7,2075.5,1.20452902]
[1771063444408,0.0011,2075.7,2075.4,3.67454187]
[1771063444713,0.46889954,2075.7,2075.4,3.67454187]
[1771063446616,0.46889954,2075.7,2075.4,3.67209187]
[1771063446991,0.46779954,2075.6,2075.4,2.47]
[1771063450097,0.46779954,2075.5,2075.1,2.47]
[1771063453321,0.36779954,2075.5,2075.1,2.47]
[1771063453618,0.36779954,2075.5,2075.1,3.67475361]
[1771063457325,0.36779954,2075.5,2075.1,2.47]
[1771063457326,0.46779954,2075.4,2075.1,2.47]
[1771063463127,0.46779954,2075.6,2075.1,2.47]
[1771063463297,0.46779954,2075.5,2075.1,2.47]
[1771063463723,0.46779954,2075.5,2074.8,2.0729087]
[1771063464030,0.46779954,2075.3,2074.8,2.0729087]
[1771063464836,0.46779954,2075.5,2074.9,0.46129131]
[1771063465328,1.67332468,2075.7,2074.9,0.46129131]
[1771063465529,0.0011,2075.7,2075.1,0.46129131]
[1771063465731,0.46889954,2075.7,2075.0,5.606]
[1771063465941,0.46889954,2075.7,2075.0,2.503]
[1771063466927,0.46779954,2075.6,2075.1,1.20476121]
[1771063470741,0.46779954,2075.6,2075.1,3.67576121]
[1771063473409,0.0011,2075.7,2075.1,3.67576121]
[1771063473715,0.0011,2075.7,2075.1,4.13705252]
[1771063477673,0.49529885,2075.7,2075.1,4.13705252]
[1771063478340,0.49529885,2075.7,2075.1,3.67576121]
[1771063478541,0.49529885,2075.7,2075.1,2.471]
[1771063478764,0.49529885,2075.7,2075.1,3.67575693]
[1771063479161,0.49529885,2075.7,2075.1,2.471]
[1771063479565,0.49419885,2075.5,2075.1,2.471]
[1771063479960,0.49419885,2075.5,2075.0,1.20479033]
[1771063480167,0.49419885,2075.5,2074.9,3.67585152]
[1771063480871,0.49419885,2075.5,2074.8,5.02590379]
[1771063481576,0.467343,2075.3,2074.8,5.02593019]
[1771063482779,0.467343,2075.3,2074.8,3.821]
[1771063482953,0.467343,2075.3,2074.8,0.001]
[1771063483752,0.467343,2075.1,2074.8,0.001]
[1771063484872,0.467343,2075.3,2074.8,0.001]
[1771063486459,1.20464756,2075.3,2074.8,0.001]
[1771063486773,0.467343,2075.2,2074.8,0.001]
[1771063487983,0.467343,2075.0,2074.8,0.001]
[1771063490470,1.6720912,2075.2,2074.8,0.001]
[1771063490970,0.467343,2075.1,2074.8,0.001]
[1771063492790,0.467343,2075.3,2074.8,0.001]
[1771063502392,0.47965703,2075.2,2074.8,0.001]
[1771063506676,1.68417279,2075.6,2074.8,0.45698486]
[1771063506881,0.47965703,2075.5,2074.8,0.45698486]
[1771063508395,0.0011,2075.7,2075.0,0.45598486]
[1771063508979,0.0011,2075.7,2075.1,1.20476121]
[1771063509500,0.0011,2075.7,2075.1,1.66074607]
[1771063509675,0.48075703,2075.7,2075.1,1.20476121]
[1771063510070,0.48075703,2075.7,2075.0,1.20478274]
[1771063510994,0.47965703,2075.5,2075.0,1.20478274]
[1771063516613,0.0011,2075.7,2075.0,1.6607676]
[1771063516912,0.48075703,2075.7,2075.0,1.20478274]
[1771063517688,0.48075703,2075.7,2075.0,1.6607676]
[1771063519181,1.68517305,2075.7,2075.0,1.6607676]
[1771063519382,0.48075703,2075.7,2075.0,1.6607676]
[1771063523110,0.0011,2075.7,2075.2,0.45598486]
[1771063524332,0.0011,2075.7,2075.3,2.471]
[1771063525119,0.48075703,2075.7,2075.3,2.471]
[1771063525606,0.48075703,2075.7,2075.3,3.67563258]
[1771063526616,0.0011,2075.7,2075.3,3.67563258]
[1771063533098,0.45184729,2075.7,2075.3,3.67563258]
[1771063533305,0.45184729,2075.7,2075.3,2.471]
[1771063533521,0.45184729,2075.7,2075.3,3.67564268]
[1771063536920,0.45074729,2075.6,2075.3,2.471]
[1771063537121,0.45074729,2075.6,2075.3,3.67564433]
[1771063538128,0.0011,2075.7,2075.3,3.67564433]
[1771063538797,0.45184729,2075.7,2075.3,3.67564433]
[1771063540297,0.45510073,2075.6,2075.3,2.471]
[1771063541428,0.45510073,2075.6,2075.3,3.67563619]
[1771063542922,0.45510073,2075.6,2075.2,1.20466828]
[1771063543101,0.45510073,2075.6,2075.2,3.67566828]
[1771063543299,0.45510073,2075.5,2075.1,1.20475429]
[1771063543526,0.45510073,2075.5,2075.1,3.67575429]
[1771063544826,1.205542,2075.7,2075.1,3.67575429]
[1771063545130,0.45620073,2075.7,2075.1,3.67575429]
[1771063545626,0.0011,2075.7,2075.1,12.26900342]
[1771063546331,0.45620073,2075.7,2075.1,4.1370456]
[1771063547033,0.45510073,2075.6,2075.1,1.20475429]
[1771063547231,0.45510073,2075.6,2075.2,2.471]
[1771063549828,0.45510073,2075.6,2075.2,3.6756963]
[1771063551218,0.45510073,2075.6,2075.2,2.471]
[1771063551917,0.45510073,2075.5,2075.0,7.49579451]